bitfinex-derivatives/quotes_SOLF0:USTF0_20250623
["timestamp","ask_amount","ask_price","bid_price","bid_amount"]
[1750698703302,93.12,134.25,134.15,36.9789578]
[1750698703497,93.12,134.25,134.18,36.9789578]
[1750698704603,93.12,134.25,134.21,36.9789578]
[1750698704996,93.12,134.25,134.17,36.9789578]
[1750698706609,7.447,134.23,134.2,7.4483]
[1750698706906,93.12,134.25,134.17,36.9789578]
[1750698707107,100.5659,134.25,134.22,7.4469]
[1750698707304,93.12,134.25,134.17,36.9789578]
[1750698707508,93.12,134.25,134.13,238.1436]
[1750698707699,7.4467,134.24,134.18,36.9789578]
[1750698707898,93.12,134.25,134.18,36.9789578]
[1750698708203,648.4757,134.27,134.21,36.9789578]
[1750698708204,4.7557,134.27,134.21,36.9789578]
[1750698708406,90.82,134.29,134.24,36.9789578]
[1750698708595,90.82,134.29,134.28,7.4439]
[1750698708908,90.82,134.29,134.2,36.9789578]
[1750698709103,2.4227,134.28,134.2,36.9789578]
[1750698709403,2.4227,134.28,134.19,36.9789578]
[1750698709600,7.4448,134.27,134.24,7.4461]
[1750698709800,4.8201,134.28,134.19,36.9789578]
[1750698710108,7.4462,134.24,134.21,7.4476]
[1750698710406,4.8201,134.28,134.19,36.9789578]
[1750698711102,4.8201,134.28,134.17,36.9789578]
[1750698711303,2.362,134.27,134.17,36.9789578]
[1750698711509,259.2809578,134.27,134.15,39.2963578]
[1750698711700,259.2809578,134.27,134.15,36.9789578]
[1750698712203,7.4481,134.21,134.18,7.4492]
[1750698712407,88.5,134.2,134.15,21.56566902]
[1750698713207,6.80585478,134.16,134.15,21.56566902]
[1750698713704,5.478e-05,134.16,134.15,21.56566902]
[1750698713910,88.5,134.2,134.18,7.4492]
[1750698714299,88.5,134.2,134.15,21.56566902]
[1750698714505,88.5,134.2,134.17,21.56566902]
[1750698714708,643.48,134.23,134.17,21.56566902]
[1750698714907,731.98,134.23,134.17,21.56566902]
[1750698715111,731.98,134.23,134.19,21.56566902]
[1750698715310,731.98,134.23,134.21,21.56566902]
[1750698715514,731.98,134.23,134.22,7.4473]
[1750698715818,731.98,134.23,134.17,21.56566902]
[1750698716017,7.4473,134.22,134.17,21.56566902]
[1750698716312,731.98,134.23,134.17,21.56566902]
[1750698716633,731.98,134.23,134.15,2.4201]
[1750698716816,731.98,134.23,134.17,21.56566902]
[1750698717123,7.4487,134.2,134.15,21.56566902]
[1750698717719,7.4481,134.21,134.15,21.56566902]
[1750698717917,7.4481,134.21,134.18,7.4494]
[1750698718120,731.98,134.23,134.15,21.56566902]
[1750698718323,238.32566902,134.22,134.13,21.56566902]
[1750698718512,238.32566902,134.22,134.11,21.56566902]
[1750698718713,7.4495,134.18,134.11,21.56566902]
[1750698718915,86.28,134.17,134.11,21.56566902]
[1750698719118,86.28,134.17,134.15,7.4509]
[1750698719422,86.28,134.17,134.11,21.56566902]
[1750698719613,86.28,134.17,134.16,7.4506]
[1750698720114,2.4907,134.21,134.1,2.3446]
[1750698720115,643.48,134.23,134.15,21.56566902]
[1750698720318,643.48,134.23,134.1,38.81716902]
[1750698720319,86.28,134.22,134.17,21.56566902]
[1750698720521,86.28,134.22,134.1,17.2515]
[1750698720723,86.28,134.22,134.13,21.56566902]
[1750698721221,86.28,134.21,134.15,21.56566902]
[1750698721616,86.28,134.21,134.16,7.4503]
[1750698721817,86.28,134.21,134.14,21.56566902]
[1750698722020,86.28,134.21,134.16,21.56566902]
[1750698722222,86.28,134.21,134.15,7.4508]
[1750698722421,86.28,134.21,134.13,21.56566902]
[1750698722619,7.4492,134.19,134.16,7.4503]
[1750698722824,7.4492,134.19,133.98,17.55464117]
[1750698722825,21.56566902,134.19,134.05,17.1824]
[1750698723026,7.4507,134.16,134.1,21.56566902]
[1750698723227,86.28,134.15,134.09,21.56566902]
[1750698723527,7.4521,134.14,134.09,21.56566902]
[1750698723720,107.84566902,134.15,134.01,251.56356902]
[1750698723920,729.72,134.15,134.06,21.56566902]
[1750698724128,21.56566902,134.14,134.05,21.56566902]
[1750698724322,729.72,134.15,134.07,21.56566902]
[1750698725025,643.44,134.15,134.07,21.56566902]
[1750698725228,86.28,134.14,134.07,21.56566902]
[1750698726029,86.28,134.14,134.09,21.56566902]
[1750698726228,86.28,134.14,134.13,7.4523]
[1750698726528,86.28,134.18,134.13,21.56566902]
[1750698726728,86.28,134.18,134.14,7.4512]
[1750698726928,86.28,134.18,134.1,214.5]
[1750698727127,86.28,134.18,134.12,21.56566902]
[1750698727519,86.28,134.18,134.11,2.3405]
[1750698727925,7.4505,134.17,134.14,7.4514]
[1750698728228,21.56566902,134.16,134.02,218.8836]
[1750698728426,21.56566902,134.14,134.01,14.9171]
[1750698728731,21.56566902,134.12,134.01,21.56566902]
[1750698729034,21.56566902,134.1,134.01,21.56566902]
[1750698729534,21.56566902,134.08,133.95,215.9405]
[1750698729727,21.56566902,134.08,133.98,21.56566902]
[1750698729928,24.03256902,134.09,133.98,21.56566902]
[1750698730234,24.03256902,134.09,133.98,83.56566902]
[1750698730629,2.4669,134.09,134.0,21.56566902]
[1750698730829,7.4569,134.05,134.02,7.4581]
[1750698731022,21.56566902,134.05,133.95,2.3405]
[1750698731330,84.12,134.06,133.95,2.3405]
[1750698731633,21.56566902,134.04,133.95,23.90616902]
[1750698732535,7.459,134.01,133.98,7.4602]
[1750698732731,21.56566902,134.04,133.95,23.90616902]
[1750698732938,84.12,134.06,133.97,21.56566902]
[1750698733634,84.12,134.06,133.99,21.56566902]
[1750698733933,84.14,134.05,134.01,21.56566902]
[1750698734135,84.14,134.05,134.04,7.4569]
[1750698734636,84.14,134.05,134.04,7.4573]
[1750698735530,84.14,134.05,134.03,7.4576]
[1750698735726,84.14,134.05,134.0,21.56566902]
[1750698735930,84.14,134.05,133.99,21.56566902]
[1750698736135,84.14,134.05,133.97,21.56566902]
[1750698737533,84.14,134.05,133.95,2.3405]
[1750698737839,7.4583,134.03,133.99,7.4599]
[1750698738232,21.56566902,134.04,133.95,23.90616902]
[1750698738432,7.4587,134.02,133.95,23.90616902]
[1750698738833,7.4587,134.02,133.95,2.3405]
[1750698739033,643.72,134.07,134.01,21.56566902]
[1750698739236,252.8995,134.18,134.07,7.4552]
[1750698739237,84.4269,134.09,134.07,7.4552]
[1750698739435,105.99256902,134.09,133.95,84.2805]
[1750698739735,105.99256902,134.09,134.03,7.4575]
[1750698739930,105.99256902,134.09,133.99,21.56566902]
[1750698739931,113.44726902,134.09,133.99,21.56566902]
[1750698740233,84.4269,134.09,134.03,21.56566902]
[1750698741046,7.4556,134.07,133.96,14.9232]
[1750698741243,84.4269,134.09,134.02,7.4581]
[1750698741435,84.4269,134.09,134.0,21.56566902]
[1750698742146,7.4553,134.08,134.0,21.56566902]
[1750698742445,84.4269,134.09,134.0,21.56566902]
[1750698742639,7.4551,134.08,134.0,21.56566902]
[1750698742941,84.4269,134.09,134.02,21.56566902]
[1750698743444,7.456,134.07,134.02,21.56566902]
[1750698743646,84.4269,134.09,134.02,21.56566902]
[1750698743840,84.4269,134.09,134.0,21.56566902]
[1750698743841,21.56566902,134.08,134.0,21.56566902]
[1750698744039,21.56566902,134.06,133.96,83.56566902]
[1750698744240,7.4581,134.03,133.96,21.56566902]
[1750698744440,81.96,134.02,133.96,21.56566902]
[1750698744642,81.96,134.02,133.95,23.90616902]
[1750698744952,81.96,134.02,134.0,7.4591]
[1750698745145,81.96,134.02,133.97,21.56566902]
[1750698745633,81.96,134.02,133.96,21.56566902]
[1750698745946,81.96,134.02,133.95,2.3405]
[1750698746245,81.96,134.02,133.98,21.56566902]
[1750698746740,81.96,134.02,133.95,23.90616902]
[1750698746937,81.96,134.02,133.93,26.20486902]
[1750698747135,81.96,134.02,133.93,88.20486902]
[1750698747349,84.3417,134.02,133.93,23.87786902]
[1750698747647,21.56566902,134.01,133.92,21.56566902]
[1750698747849,21.56566902,134.01,133.91,23.83516902]
[1750698748140,84.3417,134.02,133.92,7.4638]
[1750698748141,7.4624,133.95,133.92,7.4638]
[1750698748347,7.4624,133.95,133.89,231.64328831]
[1750698748348,7.4624,133.95,133.89,229.30208831]
[1750698748542,79.82,133.96,133.89,250.86775733]
[1750698749158,79.82,133.96,133.94,7.4625]
[1750698749945,79.82,133.96,133.95,7.4623]
[1750698750634,79.82,133.96,133.9,83.56566902]
[1750698751148,79.82,133.96,133.95,7.4623]
[1750698751743,79.84,134.0,133.99,7.4596]
[1750698752045,79.84,134.0,133.94,21.56566902]
[1750698752245,79.84,134.0,133.98,7.4603]
[1750698752445,79.84,134.0,133.94,21.56566902]
[1750698753348,79.84,134.0,133.99,7.4601]
[1750698753649,79.84,134.0,133.96,21.56566902]
[1750698754445,79.84,134.0,133.99,7.4601]
[1750698755047,238.0,134.03,134.01,7.4588]
[1750698755235,721.78,134.04,134.0,21.56566902]
[1750698755536,77.7,134.08,134.01,226.12566902]
[1750698755740,77.7,134.08,133.97,77.7]
[1750698755741,77.7,134.08,134.0,204.56]
[1750698755941,77.7,134.08,134.04,21.56566902]
[1750698756141,77.7,134.08,134.07,7.4556]
[1750698756945,77.7,134.08,134.0,204.56]
[1750698757146,85.1554,134.08,134.0,226.12566902]
[1750698757340,77.7,134.08,134.02,21.56566902]
[1750698758947,77.7,134.08,134.06,7.456]
[1750698759148,77.7,134.08,134.04,21.56566902]
[1750698759341,77.7,134.08,134.02,21.56566902]
[1750698759749,77.7,134.08,134.04,21.56566902]
[1750698760049,77.7,134.08,134.04,29.02236902]
[1750698760252,77.7,134.08,134.02,21.56566902]
[1750698760652,77.7,134.08,134.05,7.4564]
[1750698760948,77.7,134.08,134.04,21.56566902]
[1750698761250,77.7,134.08,134.01,7.0127]
[1750698761547,77.7,134.08,134.02,7.4582]
[1750698761746,77.7,134.08,133.98,203.2]
[1750698761951,2.3898,134.07,133.99,21.56566902]
[1750698762149,2.3898,134.07,134.0,7.4592]
[1750698762346,23.95546902,134.07,133.99,21.56566902]
[1750698762748,7.4579,134.03,133.98,21.56566902]
[1750698762945,75.58,134.03,133.98,21.56566902]
[1750698763253,75.58,134.03,133.96,21.56566902]
[1750698763455,75.58,134.03,133.95,21.56566902]
[1750698763748,75.58,134.03,133.98,7.4603]
[1750698764052,75.58,134.03,133.92,202.04]
[1750698764345,75.58,134.03,133.98,7.4603]
[1750698764346,7.4587,134.02,133.98,7.4603]
[1750698764545,7.4587,134.02,133.95,21.56566902]
[1750698764942,97.14566902,134.03,133.93,21.56566902]
[1750698765145,97.14566902,134.03,133.91,7.163]
[1750698765350,7.4609,133.98,133.94,7.4625]
[1750698765547,75.58,133.97,133.91,26.35986902]
[1750698766447,75.58,133.97,133.95,7.4622]
[1750698766652,75.58,133.97,133.91,26.35986902]
[1750698766843,75.58,133.97,133.96,7.4617]
[1750698767043,75.58,133.97,133.93,21.56566902]
[1750698767553,75.58,133.97,133.9,21.56566902]
[1750698767751,75.58,133.97,133.92,21.56566902]
[1750698767952,75.58,133.97,133.96,7.4617]
[1750698768343,75.58,133.97,133.93,21.56566902]
[1750698768548,75.58,133.97,133.94,7.4627]
[1750698769551,75.58,133.97,133.93,7.4629]
[1750698769749,75.58,133.97,133.91,21.56566902]
[1750698769949,75.58,133.97,133.94,7.4626]
[1750698770454,75.58,133.97,133.95,7.462]
[1750698770749,75.58,133.97,133.91,21.56566902]
[1750698770952,75.58,133.97,133.94,7.4625]
[1750698771151,75.58,133.97,133.88,224.80266902]
[1750698771462,75.58,133.97,133.95,7.4619]
[1750698771660,75.58,133.97,133.92,21.56566902]
[1750698772061,75.58,133.97,133.95,7.462]
[1750698772262,75.58,133.97,133.92,21.56566902]
[1750698772657,75.58,133.97,133.93,7.4631]
[1750698772857,75.58,133.97,133.9,21.56566902]
[1750698773464,21.56566902,133.96,133.89,229.30208831]
[1750698773763,646.8397,133.96,133.89,229.30208831]
[1750698774063,644.4,133.96,133.95,7.4623]
[1750698774363,717.94,133.96,133.92,21.56566902]
[1750698774562,717.94,133.96,133.85,2.2741]
[1750698774858,21.56566902,133.94,133.85,2.2741]
[1750698775060,7.4643,133.92,133.85,2.2741]
[1750698775263,73.54,133.91,133.85,2.2741]
[1750698775660,73.54,133.91,133.9,7.4651]
[1750698776164,73.54,133.91,133.9,29.03076902]
[1750698776664,73.54,133.91,133.9,7.4651]
[1750698777163,73.54,133.91,133.89,7.4654]
[1750698777362,73.54,133.91,133.88,21.56566902]
[1750698777566,73.54,133.95,133.88,21.56566902]
[1750698777767,73.54,133.95,133.91,7.4642]
[1750698777957,81.0026,133.95,133.91,7.4642]
[1750698778157,73.54,133.95,133.88,21.56566902]
[1750698778358,81.0023,133.95,133.88,21.56566902]
[1750698778662,73.54,133.95,133.92,7.4636]
[1750698778858,81.0024,133.95,133.92,7.4636]
[1750698779459,7.4637,133.93,133.86,62.0]
[1750698779660,73.54,133.95,133.87,21.56566902]
[1750698780562,73.54,133.95,133.89,21.56566902]
[1750698780867,73.54,133.95,133.87,21.56566902]
[1750698781059,73.54,133.95,133.91,21.56566902]
[1750698781261,73.54,133.95,133.86,14.9346]
[1750698781563,73.54,133.95,133.94,7.4628]
[1750698782764,73.54,133.95,133.89,21.56566902]
[1750698782956,73.54,133.95,133.85,2.2741]
[1750698783157,73.54,133.95,133.87,21.56566902]
[1750698783353,73.54,133.95,133.89,21.56566902]
[1750698783555,644.4,133.96,133.91,21.56566902]
[1750698783763,644.4,133.96,133.88,21.56566902]
[1750698784367,644.4,133.96,133.86,197.12]
[1750698784368,665.96566902,133.96,133.87,21.56566902]
[1750698784559,665.96566902,133.96,133.85,2.2741]
[1750698784866,665.96566902,133.96,133.85,23.83976902]
[1750698785054,665.96566902,133.96,133.87,21.56566902]
[1750698785763,7.4639,133.92,133.87,21.56566902]
[1750698785964,71.5,133.92,133.87,83.56566902]
[1750698786364,71.5,133.92,133.85,2.2741]
[1750698786571,71.5,133.92,133.87,13.82066721]
[1750698786869,71.5,133.92,133.85,16.09476721]
[1750698787370,78.9641,133.92,133.88,7.4656]
[1750698787574,71.5,133.92,133.85,16.09476721]
[1750698787769,7.4647,133.91,133.88,7.4657]
[1750698787972,71.5,133.92,133.85,16.09476721]
[1750698788375,71.5,133.92,133.88,7.4657]
[1750698788863,7.4652,133.9,133.85,2.2741]
[1750698789065,85.32066721,133.92,133.84,199.1101]
[1750698789270,85.32066721,133.92,133.85,13.82066721]
[1750698789571,7.4653,133.9,133.86,7.4667]
[1750698789774,4.7431,133.91,133.83,13.82066721]
[1750698789977,13.82066721,133.88,133.81,13.82066721]
[1750698790171,71.5,133.87,133.8,13.82066721]
[1750698790376,71.5,133.87,133.79,2.3241]
[1750698790573,13.82066721,133.84,133.79,7.4708]
[1750698790881,13.82066721,133.82,133.74,13.82066721]
[1750698791176,71.52,133.81,133.73,13.82066721]
[1750698791365,71.52,133.81,133.75,13.82066721]
[1750698791571,71.52,133.81,133.8,7.4705]
[1750698791772,71.52,133.81,133.78,13.82066721]
[1750698791972,71.52,133.81,133.72,4.8346]
[1750698792279,644.74,133.88,133.79,21.67790579]
[1750698792280,716.26,133.88,133.79,21.67790579]
[1750698792576,716.26,133.88,133.82,21.67790579]
[1750698792883,716.26,133.88,133.79,21.67790579]
[1750698793072,737.93790579,133.88,133.77,62.0]
[1750698793275,716.26,133.88,133.76,196.74]
[1750698793574,737.93790579,133.88,133.77,21.67790579]
[1750698793980,716.26,133.88,133.76,218.41790579]
[1750698794283,737.93790579,133.88,133.77,21.67790579]
[1750698794472,21.67790579,133.86,133.76,196.74]
[1750698794866,21.67790579,133.84,133.66,14.9562]
[1750698795064,21.67790579,133.82,133.67,4.8818]
[1750698795269,7.4723,133.77,133.68,196.78]
[1750698795573,71.54,133.76,133.7,21.67790579]
[1750698795886,71.54,133.75,133.7,21.67790579]
[1750698796066,71.54,133.75,133.69,21.67790579]
[1750698796776,79.0137,133.75,133.71,7.4754]
[1750698796981,71.54,133.75,133.69,21.67790579]
[1750698797180,71.54,133.75,133.73,21.67790579]
[1750698797376,71.54,133.75,133.66,62.0]
[1750698797581,71.54,133.75,133.7,21.67790579]
[1750698797775,79.0134,133.75,133.71,7.4752]
[1750698797977,71.54,133.75,133.7,21.67790579]
[1750698798372,71.54,133.75,133.66,62.0]
[1750698798775,7.4757,133.71,133.66,7.4779]
[1750698799076,2.3262,133.74,133.65,21.67790579]
[1750698799283,71.58,133.73,133.67,21.67790579]
[1750698799471,71.58,133.73,133.66,21.67790579]
[1750698799672,73.8949,133.73,133.66,21.67790579]
[1750698799867,7.4764,133.7,133.65,29.15640579]
[1750698800077,7.4764,133.7,133.65,21.67790579]
[1750698800285,76.342,133.73,133.65,21.67790579]
[1750698800480,7.4751,133.72,133.67,21.67790579]
[1750698800688,2.3262,133.74,133.71,21.67790579]
[1750698800979,71.58,133.77,133.73,21.67790579]
[1750698801375,71.58,133.77,133.74,7.4737]
[1750698801682,71.58,133.77,133.73,21.67790579]
[1750698801886,644.92,133.79,133.76,7.4727]
[1750698802072,644.92,133.79,133.75,21.67790579]
[1750698802270,644.92,133.79,133.77,21.67790579]
[1750698802472,644.92,133.79,133.78,7.4716]
[1750698802674,71.58,133.81,133.77,21.67790579]
[1750698802875,71.58,133.81,133.8,21.67790579]
[1750698803578,71.58,133.85,133.8,21.67790579]
[1750698804978,7.2949,133.86,133.8,21.67790579]
[1750698805383,7.2949,133.86,133.82,21.67790579]
[1750698805885,14.7626,133.86,133.82,21.67790579]
[1750698806086,7.2949,133.86,133.82,21.67790579]
[1750698806279,71.58,133.85,133.79,21.67790579]
[1750698807281,71.58,133.85,133.73,196.88]
[1750698807485,71.58,133.85,133.76,21.67790579]
[1750698807979,71.58,133.85,133.78,21.67790579]
[1750698808588,7.4689,133.83,133.79,7.4708]
[1750698808885,71.58,133.85,133.79,7.4708]
[1750698809185,7.4696,133.82,133.78,29.14930579]
[1750698809387,7.4696,133.82,133.78,21.67790579]
[1750698809989,71.58,133.85,133.77,21.67790579]
[1750698810282,71.58,133.85,133.73,258.88]
[1750698810475,71.58,133.85,133.76,21.67790579]
[1750698810988,7.4714,133.79,133.76,7.4725]
[1750698811178,71.58,133.79,133.75,21.67790579]
[1750698811582,79.0512,133.79,133.76,7.4724]
[1750698811781,71.58,133.79,133.74,21.67790579]
[1750698812579,71.58,133.79,133.73,196.88]
[1750698812780,2.4562,133.78,133.73,196.88]
[1750698812982,2.4562,133.78,133.69,21.67790579]
[1750698813181,4.9483,133.77,133.69,21.67790579]
[1750698813376,4.9483,133.77,133.71,21.67790579]
[1750698813577,4.9483,133.77,133.73,7.4742]
[1750698813882,4.9483,133.77,133.71,21.67790579]
[1750698814081,4.9483,133.77,133.74,7.4738]
[1750698814399,2.4562,133.78,133.67,62.0]
[1750698814685,7.4726,133.77,133.73,7.4744]
[1750698815384,7.4728,133.76,133.72,29.15250579]
[1750698815586,2.4562,133.78,133.7,21.67790579]
[1750698815890,2.4562,133.78,133.71,7.4752]
[1750698816097,2.4562,133.78,133.7,21.67790579]
[1750698816303,7.4741,133.74,133.71,7.4752]
[1750698816592,71.34,133.74,133.68,21.67790579]
[1750698817582,71.34,133.74,133.69,7.4762]
[1750698817890,71.34,133.74,133.68,21.67790579]
[1750698818087,71.34,133.74,133.7,21.67790579]
[1750698818299,71.34,133.74,133.66,196.84]
[1750698818485,7.4762,133.7,133.67,7.4775]
[1750698818794,4.7002,133.73,133.66,21.67790579]
[1750698819293,4.7002,133.73,133.64,21.67790579]
[1750698819490,7.4782,133.67,133.64,29.15710579]
[1750698819688,78.8182,133.67,133.64,7.4792]
[1750698819888,71.34,133.67,133.62,21.67790579]
[1750698820389,78.8181,133.67,133.64,7.4794]
[1750698820591,78.8181,133.67,133.62,21.67790579]
[1750698820892,71.34,133.67,133.62,21.67790579]
[1750698821593,71.34,133.67,133.64,21.67790579]
[1750698821793,71.34,133.67,133.66,29.15620579]
[1750698823087,71.34,133.67,133.66,7.4783]
[1750698824596,71.34,133.67,133.63,21.67790579]
[1750698825095,71.34,133.67,133.65,7.4788]
[1750698825797,71.34,133.67,133.63,21.67790579]
[1750698826389,71.34,133.67,133.62,62.0]
[1750698826588,71.34,133.67,133.63,21.67790579]
[1750698826793,645.5,133.7,133.65,21.67790579]
[1750698826999,645.5,133.7,133.68,21.67790579]
[1750698827200,645.5,133.7,133.68,7.4769]
[1750698827392,645.5,133.7,133.66,21.67790579]
[1750698828190,645.5,133.7,133.62,62.0]
[1750698828387,645.5,133.7,133.67,21.67790579]
[1750698829197,645.5,133.7,133.68,7.4768]
[1750698829595,645.5,133.7,133.62,62.0]
[1750698829793,645.5,133.7,133.67,21.67790579]
[1750698829994,645.5,133.7,133.62,62.0]
[1750698830302,645.5,133.7,133.67,21.67790579]
[1750698830491,645.5,133.7,133.62,62.0]
[1750698830700,645.5,133.7,133.66,21.67790579]
[1750698830901,645.5,133.7,133.64,21.67790579]
[1750698831200,7.4775,133.68,133.64,21.67790579]
[1750698831394,645.5,133.7,133.64,21.67790579]
[1750698831592,7.477,133.69,133.65,7.4786]
[1750698831798,645.5,133.7,133.64,21.67790579]
[1750698832200,645.5,133.7,133.66,13.8660573]
[1750698833399,645.5,133.7,133.67,7.4775]
[1750698833902,645.5,133.7,133.68,7.4771]
[1750698834294,645.5,133.7,133.67,13.8660573]
[1750698834496,645.5,133.7,133.62,258.7]
[1750698834698,652.9764,133.7,133.66,13.8660573]
[1750698834899,645.5,133.7,133.66,13.8660573]
[1750698835206,244.87811046,133.78,133.62,258.7]
[1750698835501,645.84,133.78,133.77,7.4722]
[1750698835703,78.8503,133.81,133.76,13.8660573]
[1750698835999,71.38,133.81,133.78,13.8660573]
[1750698836191,71.38,133.81,133.77,7.4719]
[1750698836398,71.38,133.81,133.76,21.68993799]
[1750698836902,71.38,133.81,133.78,21.68993799]
[1750698837308,71.38,133.81,133.8,7.4705]
[1750698837605,71.38,133.81,133.74,218.28993799]
[1750698837606,71.38,133.81,133.74,196.6]
[1750698837806,71.38,133.81,133.79,7.4707]
[1750698838008,71.38,133.81,133.77,21.68993799]
[1750698838406,71.38,133.81,133.78,7.4715]
[1750698838909,71.38,133.81,133.77,29.16173799]
[1750698839097,71.38,133.81,133.77,21.68993799]
[1750698839495,71.38,133.81,133.78,7.4711]
[1750698839704,71.38,133.81,133.79,21.68993799]
[1750698840104,71.38,133.81,133.8,7.4705]
[1750698840606,717.2,133.85,133.81,7.4695]
[1750698840803,717.2,133.85,133.81,21.68993799]
[1750698841196,717.2,133.85,133.83,21.68993799]
[1750698841400,2.64832,133.86,133.83,21.68993799]
[1750698841605,2.64832,133.86,133.85,29.15763799]
[1750698842098,436.6743,133.92,133.85,21.68993799]
[1750698842099,2.2943,133.92,133.85,21.68993799]
[1750698842303,721.7102,133.93,133.89,21.68993799]
[1750698842602,721.7102,133.93,133.86,21.68993799]
[1750698843007,7.4652,133.9,133.86,21.68993799]
[1750698843209,721.7102,133.93,133.86,21.68993799]
[1750698843410,721.7102,133.93,133.84,21.68993799]
[1750698843607,7.4658,133.89,133.84,21.68993799]
[1750698843912,71.34,133.88,133.84,21.68993799]
[1750698844103,71.34,133.9,133.86,21.68993799]
[1750698844415,71.34,133.9,133.88,21.68993799]
[1750698844610,71.34,133.9,133.83,21.68993799]
[1750698844809,71.34,133.9,133.88,21.68993799]
[1750698845016,71.34,133.9,133.89,7.4655]
[1750698845314,647.9118,133.93,133.89,7.4655]
[1750698845501,645.54,133.93,133.9,21.68993799]
[1750698846103,645.54,133.93,133.85,4.8275]
[1750698846319,7.4641,133.92,133.86,21.68993799]
[1750698846607,70.86,133.91,133.85,21.68993799]
[1750698847116,70.86,133.91,133.81,21.68993799]
[1750698847319,7.4677,133.86,133.79,21.68993799]
[1750698847517,70.84,133.85,133.81,7.4699]
[1750698847714,70.84,133.85,133.79,21.68993799]
[1750698848308,70.84,133.85,133.78,196.12]
[1750698848603,70.84,133.85,133.79,21.68993799]
[1750698849008,70.84,133.85,133.81,7.4696]
[1750698849209,70.84,133.85,133.81,21.68993799]
[1750698849817,78.3081,133.85,133.81,29.15963799]
[1750698850019,70.84,133.85,133.79,21.68993799]
[1750698850606,70.84,133.85,133.81,21.68993799]
[1750698851013,70.84,133.85,133.79,21.68993799]
[1750698851819,70.84,133.85,133.75,200.8646]
[1750698852019,7.4698,133.82,133.78,7.4713]
[1750698852215,737.68993799,133.85,133.76,21.68993799]
[1750698852420,737.68993799,133.85,133.74,217.56993799]
[1750698852723,737.68993799,133.85,133.72,2.4545]
[1750698852724,21.68993799,133.83,133.72,21.68993799]
[1750698853025,21.68993799,133.81,133.72,21.68993799]
[1750698853215,70.84,133.8,133.71,2.326]
[1750698853522,21.68993799,133.79,133.7,21.68993799]
[1750698853824,70.84,133.8,133.72,21.68993799]
[1750698854015,70.84,133.8,133.73,21.68993799]
[1750698854614,70.84,133.8,133.76,7.4724]
[1750698854817,70.84,133.8,133.73,21.68993799]
[1750698855323,70.84,133.8,133.77,21.68993799]
[1750698855625,70.84,133.8,133.78,7.4712]
[1750698855815,70.84,133.8,133.77,21.68993799]
[1750698856017,70.84,133.8,133.75,21.68993799]
[1750698857415,70.84,133.8,133.76,7.4724]
[1750698857610,70.84,133.8,133.74,21.68993799]
[1750698857813,70.84,133.8,133.73,21.68993799]
[1750698858120,70.84,133.8,133.68,266.68]
[1750698858121,70.84,133.8,133.75,21.68993799]
[1750698859325,70.84,133.8,133.79,7.4712]
[1750698859530,70.84,133.8,133.77,21.68993799]
[1750698860722,240.3167,133.84,133.69,62.0]
[1750698860723,240.3167,133.84,133.79,21.68993799]
[1750698861024,73.1767,133.84,133.81,7.4698]
[1750698861230,73.1767,133.84,133.8,21.68993799]
[1750698861423,70.86,133.84,133.8,21.68993799]
[1750698862932,70.86,133.84,133.83,7.4689]
[1750698865030,645.16,133.85,133.84,7.4684]
[1750698865331,73.2482,133.88,133.84,21.68993799]
[1750698865529,73.2482,133.88,133.86,7.4672]
[1750698866127,80.7082,133.88,133.78,62.0]